bitfinex/quotes_BTCUSD_20220115
["timestamp","ask_amount","ask_price","bid_price","bid_amount"]
[1642273559238,0.00094275,43339.0,43334.0,7.719e-05]
[1642273559438,0.00094275,43339.0,43333.0,9.438e-05]
[1642273559638,8.76e-06,43339.0,43333.0,0.25739087]
[1642273559838,0.00094275,43339.0,43333.0,9.438e-05]
[1642273560143,0.00094275,43339.0,43333.0,0.00609201]
[1642273560342,6.876e-05,43338.0,43333.0,0.00609201]
[1642273560940,6.876e-05,43338.0,43335.0,0.057673]
[1642273563887,6.876e-05,43338.0,43335.0,0.057573]
[1642273564491,6.876e-05,43338.0,43336.0,0.27215493]
[1642273564690,0.00044941,43339.0,43337.0,0.55]
[1642273564890,0.00044941,43339.0,43336.0,0.27215493]
[1642273565737,0.31598477,43342.0,43336.0,0.27215493]
[1642273566942,0.31598477,43342.0,43340.0,0.69052669]
[1642273567242,0.31598477,43342.0,43340.0,0.79052669]
[1642273567946,0.31598477,43342.0,43341.0,0.96268162]
[1642273568141,0.0062544,43344.0,43341.0,1.06268162]
[1642273568343,6.876e-05,43342.0,43341.0,1.06268162]
[1642273569042,6.876e-05,43342.0,43341.0,1.01808162]
[1642273569916,6.876e-05,43342.0,43341.0,0.32755493]
[1642273571317,6.876e-05,43342.0,43341.0,0.22755493]
[1642273571516,6.876e-05,43342.0,43341.0,0.32755493]
[1642273571718,6.876e-05,43342.0,43341.0,1.01820356]
[1642273572621,6.876e-05,43342.0,43341.0,0.32755493]
[1642273572823,6.876e-05,43342.0,43341.0,0.22755493]
[1642273573025,6.876e-05,43342.0,43341.0,0.32755493]
[1642273573438,6.876e-05,43342.0,43341.0,0.1]
[1642273574037,0.376309,43341.0,43335.0,0.74300199]
[1642273574238,6.876e-05,43342.0,43335.0,0.74300199]
[1642273575540,0.00093397,43341.0,43335.0,0.84300199]
[1642273576538,6.876e-05,43342.0,43335.0,0.84300199]
[1642273576738,0.00093396,43341.0,43335.0,0.84300199]
[1642273577489,6.876e-05,43342.0,43341.0,0.00063632]
[1642273577691,0.37637776,43342.0,43341.0,0.00063632]
[1642273578095,0.46992157,43342.0,43341.0,0.00063632]
[1642273578291,0.37637776,43342.0,43341.0,0.00063632]
[1642273579090,0.37637776,43342.0,43337.0,0.01408265]
[1642273580093,0.37637776,43342.0,43337.0,0.01370632]
[1642273580293,0.37637776,43342.0,43337.0,0.01408265]
[1642273580941,6.876e-05,43342.0,43337.0,0.01408265]
[1642273581343,6.876e-05,43342.0,43337.0,0.01370632]
[1642273581542,6.876e-05,43342.0,43337.0,0.0143128]
[1642273582543,6.876e-05,43342.0,43337.0,0.01370632]
[1642273582742,6.876e-05,43342.0,43337.0,0.0143128]
[1642273583542,6.876e-05,43342.0,43337.0,0.01370632]
[1642273583944,6.876e-05,43342.0,43336.0,0.91652929]
[1642273584345,6.876e-05,43342.0,43338.0,0.27205013]
[1642273584991,6.876e-05,43342.0,43337.0,0.32972013]
[1642273585391,6.876e-05,43342.0,43337.0,0.42972013]
[1642273585591,6.876e-05,43342.0,43338.0,0.27205013]
[1642273586191,0.00062796,43342.0,43338.0,0.27205013]
[1642273586391,0.00062796,43342.0,43339.0,0.115321]
[1642273586591,0.00062796,43342.0,43338.0,0.37205013]
[1642273586791,0.00062796,43342.0,43337.0,1.06150162]
[1642273587190,6.876e-05,43342.0,43339.0,0.27205013]
[1642273587392,0.00100273,43342.0,43339.0,0.27205013]
[1642273587993,0.00100273,43342.0,43336.0,0.27205013]
[1642273588438,6.876e-05,43342.0,43336.0,0.27205013]
[1642273588641,0.00093505,43342.0,43336.0,0.27205013]
[1642273589137,0.00093505,43342.0,43336.0,0.22745013]
[1642273589540,0.00093505,43342.0,43335.0,0.99366003]
[1642273589738,6.876e-05,43342.0,43341.0,0.69079183]
[1642273589939,0.00093505,43342.0,43341.0,0.69079183]
[1642273590339,0.00093505,43342.0,43335.0,0.20420854]
[1642273590540,0.00093505,43342.0,43335.0,0.89366003]
[1642273590838,6.876e-05,43342.0,43335.0,0.99322449]
[1642273591038,0.00093505,43342.0,43335.0,0.99366003]
[1642273591639,0.00093505,43342.0,43341.0,0.69078218]
[1642273592089,6.876e-05,43342.0,43335.0,0.99322449]
[1642273592293,6.876e-05,43342.0,43336.0,0.78945149]
[1642273592690,6.876e-05,43342.0,43336.0,0.88945149]
[1642273592890,6.876e-05,43342.0,43336.0,0.1]
[1642273593491,0.00095374,43342.0,43336.0,0.1]
[1642273593895,0.00095374,43342.0,43335.0,0.99370429]
[1642273594091,0.00095374,43342.0,43335.0,0.94890429]
[1642273594491,6.876e-05,43342.0,43335.0,0.94842449]
[1642273594693,0.00095373,43342.0,43335.0,0.94890429]
[1642273594892,0.00095373,43342.0,43341.0,0.69082323]
[1642273595744,6.876e-05,43342.0,43341.0,0.69082323]
[1642273597244,6.876e-05,43342.0,43340.0,0.057666]
[1642273597643,6.876e-05,43342.0,43337.0,0.88945149]
[1642273598244,0.00094876,43342.0,43337.0,0.88945149]
[1642273598446,0.00094876,43342.0,43337.0,0.1]
[1642273598646,0.00094876,43342.0,43336.0,1.00478249]
[1642273598950,0.00094876,43342.0,43337.0,0.78945149]
[1642273599147,0.00094876,43342.0,43337.0,0.84475149]
[1642273599347,6.876e-05,43342.0,43337.0,0.84475149]
[1642273599592,0.00094876,43342.0,43337.0,0.84475149]
[1642273600596,0.0009501,43342.0,43337.0,0.84475149]
[1642273601197,0.0009501,43342.0,43338.0,0.057665]
[1642273601700,6.876e-05,43342.0,43338.0,0.057665]
[1642273601897,0.0009501,43342.0,43338.0,0.057665]
[1642273604153,6.876e-05,43342.0,43338.0,0.012965]
[1642273604358,0.00094974,43342.0,43338.0,0.012965]
[1642273604554,0.00094974,43342.0,43339.0,0.44139219]
[1642273605056,0.00094974,43342.0,43339.0,0.54139219]
[1642273605255,6.876e-05,43342.0,43339.0,0.54139219]
[1642273606354,6.876e-05,43342.0,43340.0,0.44139219]
[1642273606555,6.876e-05,43342.0,43340.0,0.54139219]
[1642273607395,6.876e-05,43342.0,43341.0,0.44139219]
[1642273607592,6.876e-05,43342.0,43341.0,0.54139219]
[1642273608294,6.876e-05,43342.0,43341.0,0.65671119]
[1642273608495,1.5e-07,43342.0,43341.0,0.65671119]
[1642273609099,1.5e-07,43342.0,43341.0,0.61211119]
[1642273610599,1.5e-07,43342.0,43341.0,1.19757048]
[1642273611046,0.00088104,43344.0,43341.0,1.31287148]
[1642273611248,0.03383171,43351.0,43343.0,0.00121966]
[1642273611444,0.00088103,43345.0,43344.0,0.10375]
[1642273611644,0.00088103,43345.0,43344.0,1.50388528]
[1642273611844,0.00088103,43345.0,43344.0,1.50376528]
[1642273612049,0.00088103,43345.0,43344.0,1.60376528]
[1642273612245,0.00088103,43345.0,43344.0,2.39225714]
[1642273612446,0.00013752,43350.0,43344.0,2.39225714]
[1642273612646,0.00088102,43347.0,43344.0,2.39225714]
[1642273612846,0.00088102,43347.0,43344.0,2.09212186]
[1642273613148,6.876e-05,43346.0,43344.0,2.09212186]
[1642273613547,6.876e-05,43346.0,43345.0,1.10033793]
[1642273613747,6.876e-05,43346.0,43345.0,1.0461]
[1642273613948,6.876e-05,43346.0,43345.0,1.1461]
[1642273614147,6.876e-05,43346.0,43345.0,1.1014]
[1642273614591,6.876e-05,43346.0,43345.0,1.5514]
[1642273615590,6.876e-05,43346.0,43345.0,1.1014]
[1642273617690,6.876e-05,43346.0,43345.0,1.6014]
[1642273618848,0.84411838,43355.0,43345.0,0.1461]
[1642273619047,0.84411838,43355.0,43346.0,0.070499]
[1642273619252,0.00010314,43352.0,43346.0,0.116599]
[1642273619648,8.595e-05,43351.0,43346.0,0.116599]
[1642273619952,6.876e-05,43350.0,43346.0,0.116599]
[1642273620448,0.27907329,43353.0,43346.0,0.116599]
[1642273620848,0.27907329,43353.0,43348.0,0.057649]
[1642273621050,0.27907329,43353.0,43349.0,0.057651]
[1642273621249,0.376309,43352.0,43349.0,0.057651]
[1642273621549,8.595e-05,43351.0,43349.0,0.057651]
[1642273621996,6.876e-05,43350.0,43349.0,0.057651]
[1642273622397,6.876e-05,43350.0,43349.0,0.657651]
[1642273622604,6.876e-05,43350.0,43349.0,0.757651]
[1642273624201,6.876e-05,43350.0,43349.0,0.712751]
[1642273624400,6.876e-05,43350.0,43349.0,1.112751]
[1642273624600,6.876e-05,43350.0,43349.0,0.712751]
[1642273625204,6.876e-05,43350.0,43349.0,1.22029874]
[1642273626139,6.876e-05,43350.0,43349.0,0.712751]
[1642273626339,6.876e-05,43350.0,43349.0,1.612751]
[1642273627641,6.876e-05,43350.0,43349.0,1.91193252]
[1642273628841,6.876e-05,43350.0,43349.0,0.712751]
[1642273629042,0.00093388,43352.0,43350.0,2.23e-06]
[1642273629243,0.30534849,43355.0,43349.0,0.06805323]
[1642273629491,0.00093387,43353.0,43348.0,0.68887739]
[1642273629892,0.00093387,43353.0,43349.0,0.057651]
[1642273630297,0.00093387,43353.0,43348.0,0.68887739]
[1642273630500,6.876e-05,43354.0,43348.0,0.68887739]
[1642273630794,0.00093387,43353.0,43346.0,0.116599]
[1642273630993,0.376309,43352.0,43346.0,0.116599]
[1642273631994,0.00093389,43351.0,43346.0,0.80577946]
[1642273632195,0.00093389,43351.0,43346.0,0.90577946]
[1642273632595,0.00093389,43351.0,43347.0,0.68918046]
[1642273632796,6.876e-05,43354.0,43347.0,0.68918046]
[1642273633000,0.00093389,43351.0,43347.0,0.78918046]
[1642273633243,0.00093389,43351.0,43347.0,1.15756811]
[1642273634044,6.876e-05,43354.0,43347.0,1.27287111]
[1642273634244,0.00093389,43351.0,43347.0,1.22817111]
[1642273634446,0.00093389,43351.0,43347.0,0.85978346]
[1642273635247,6.876e-05,43354.0,43347.0,0.85978346]
[1642273635449,0.00093389,43351.0,43350.0,0.59088455]
[1642273635653,0.00093389,43351.0,43350.0,0.74853555]
[1642273636048,0.00093389,43351.0,43350.0,0.69088455]
[1642273636249,0.30135114,43355.0,43350.0,0.69088455]
[1642273636452,0.30135114,43355.0,43350.0,0.69095331]
[1642273636650,0.29635114,43355.0,43350.0,0.10006876]
[1642273636851,0.376309,43354.0,43350.0,0.15772176]
[1642273637092,0.376309,43354.0,43350.0,0.05772176]
[1642273637296,0.371309,43354.0,43350.0,0.05772176]
[1642273637492,0.371309,43354.0,43350.0,6.876e-05]
[1642273638095,0.371309,43354.0,43350.0,0.59095331]
[1642273638498,0.371309,43354.0,43350.0,0.69095331]
[1642273639197,0.37186599,43354.0,43350.0,0.64625331]
[1642273639898,0.37186599,43354.0,43350.0,0.54625331]
[1642273640099,0.371309,43354.0,43346.0,0.057658]
[1642273640300,0.00093386,43354.0,43347.0,0.00061601]
[1642273640743,0.38628937,43355.0,43347.0,0.00061601]
[1642273640948,0.357825,43354.0,43347.0,0.00061601]
[1642273641147,0.339345,43354.0,43348.0,0.47743285]
[1642273641346,0.260325,43355.0,43349.0,0.057653]
[1642273641545,0.250605,43355.0,43349.0,0.057653]
[1642273641747,0.249865,43355.0,43349.0,0.057653]
[1642273642647,0.249865,43355.0,43349.0,0.74709129]
[1642273643045,0.249865,43355.0,43349.0,0.84709129]
[1642273643449,0.249865,43355.0,43349.0,0.157653]
[1642273643646,0.249865,43355.0,43349.0,0.215301]
[1642273643846,0.2849301,43356.0,43349.0,0.215301]
[1642273643847,0.28548473,43356.0,43349.0,0.157653]
[1642273644046,0.28548473,43356.0,43349.0,0.057653]
[1642273644246,8.596e-05,43355.0,43349.0,0.70249129]
[1642273644694,0.28548473,43356.0,43349.0,1.27151619]
[1642273644695,0.34494279,43351.0,43349.0,1.27151619]
[1642273645092,0.34494279,43351.0,43350.0,0.00062358]
[1642273645693,6.876e-05,43354.0,43350.0,0.00062358]
[1642273645894,6.876e-05,43354.0,43350.0,0.05827658]
[1642273646097,6.876e-05,43354.0,43350.0,0.53342917]
[1642273646294,0.28093268,43356.0,43350.0,1.22349104]
[1642273646493,0.28093268,43356.0,43350.0,1.32349104]
[1642273646895,0.28093268,43356.0,43351.0,0.68943829]
[1642273647093,0.32790166,43354.0,43351.0,0.68943829]
[1642273647695,0.32790166,43354.0,43353.0,0.59084849]
[1642273648343,0.2809327,43356.0,43353.0,0.59084849]
[1642273648539,0.27999886,43356.0,43353.0,0.59084849]
[1642273648742,0.2809327,43356.0,43353.0,0.59084849]
[1642273649338,0.2809327,43356.0,43353.0,0.50134849]
[1642273649539,0.27715284,43355.0,43353.0,0.50134849]
[1642273653010,0.27715284,43355.0,43351.0,0.68943829]
[1642273653208,0.27715284,43355.0,43352.0,1.16251522]
[1642273653808,0.27715284,43355.0,43352.0,0.68943829]
[1642273654207,0.27715284,43355.0,43352.0,0.68893829]
[1642273654408,0.27715284,43355.0,43353.0,1.16201522]
[1642273654907,0.27715284,43355.0,43353.0,0.68893829]
[1642273655609,0.27215284,43355.0,43353.0,0.68893829]
[1642273656448,0.81106171,43353.0,43350.0,0.00062356]
[1642273656950,0.81106171,43353.0,43346.0,0.84529281]
[1642273657151,0.81106171,43353.0,43351.0,0.47307693]
[1642273657749,0.81106171,43353.0,43352.0,0.47307693]
[1642273657950,1.18736671,43353.0,43352.0,0.47307693]
[1642273659254,1.18736671,43353.0,43352.0,0.42847693]
[1642273659894,1.18236671,43353.0,43352.0,0.42847693]
[1642273661902,1.14882371,43353.0,43352.0,0.42847693]
[1642273662397,1.41386147,43353.0,43352.0,0.42847693]
[1642273663239,1.14882371,43353.0,43352.0,0.42847693]
[1642273664341,1.14882371,43353.0,43352.0,0.38377693]
[1642273664545,1.4824485,43353.0,43352.0,0.38377693]
[1642273666645,1.4824485,43353.0,43352.0,0.37987093]
[1642273669294,1.4824485,43353.0,43352.0,0.33517093]
[1642273674350,1.4824485,43353.0,43352.0,0.29067093]
[1642273679450,1.4824485,43353.0,43352.0,0.24597093]
[1642273681248,1.14882371,43353.0,43352.0,0.24597093]
[1642273684399,1.14882371,43353.0,43352.0,0.20137093]
[1642273684602,1.14882371,43353.0,43352.0,0.19951995]
[1642273689344,1.14882371,43353.0,43352.0,0.15481995]
[1642273689595,1.13882371,43353.0,43352.0,0.15481995]
[1642273694443,1.13882371,43353.0,43352.0,0.10991995]
[1642273699399,1.13882371,43353.0,43352.0,0.06491995]
[1642273701747,0.676305,43353.0,43352.0,0.06491995]
[1642273704495,0.676305,43353.0,43352.0,0.01981995]
[1642273706296,0.3,43353.0,43352.0,0.01981995]
[1642273709548,0.3,43353.0,43349.0,0.86347833]
[1642273709947,0.3,43353.0,43350.0,6.876e-05]
[1642273711654,0.3,43353.0,43351.0,0.05765]
[1642273714501,0.3,43353.0,43351.0,0.01305]
[1642273716953,0.0137083,43353.0,43351.0,0.01305]
[1642273717754,0.0137083,43353.0,43351.0,0.070695]
[1642273718153,0.0137083,43353.0,43351.0,0.01305]
[1642273718654,0.0137083,43353.0,43351.0,0.77652833]
[1642273719058,0.0137083,43353.0,43351.0,0.87652833]
[1642273719496,0.0137083,43353.0,43351.0,0.06835]
[1642273720097,0.0137083,43353.0,43351.0,0.76347833]
[1642273720396,0.0137083,43353.0,43351.0,0.82112833]
[1642273721397,0.0137083,43353.0,43351.0,0.92112833]
[1642273721600,0.0087083,43353.0,43352.0,0.76347833]
[1642273721999,0.0087083,43353.0,43352.0,1.2945682]
[1642273722397,0.0087083,43353.0,43352.0,0.53108987]
[1642273722599,0.00093386,43354.0,43353.0,2.35]
[1642273722800,0.00093386,43354.0,43353.0,2.39323066]
[1642273723001,0.0005336,43363.0,43357.0,0.057631]
[1642273723259,0.0005336,43363.0,43358.0,0.08802]
[1642273723460,0.00012034,43361.0,43358.0,0.08802]
[1642273723760,0.00010315,43360.0,43358.0,0.08802]
[1642273724161,8.596e-05,43359.0,43358.0,0.40987225]
[1642273724357,8.596e-05,43359.0,43358.0,0.95987225]
[1642273724557,8.596e-05,43359.0,43358.0,1.01527225]
[1642273724756,8.596e-05,43359.0,43358.0,0.751055]
[1642273725557,8.596e-05,43359.0,43358.0,1.24973843]
[1642273727004,0.00014885,43361.0,43359.0,0.5]
[1642273727203,0.00014885,43361.0,43360.0,0.0461]
[1642273727606,0.0005336,43363.0,43360.0,0.0461]
[1642273727807,0.0005336,43363.0,43361.0,0.057635]
[1642273728406,0.0005336,43363.0,43361.0,0.55631843]
[1642273728606,0.0005336,43363.0,43361.0,0.65631843]
[1642273729006,0.0005336,43363.0,43362.0,0.49868343]
[1642273729410,0.00060236,43363.0,43362.0,0.59868343]
[1642273729605,0.00060236,43363.0,43362.0,0.55378343]
[1642273729806,0.00060236,43363.0,43362.0,1.24205068]
[1642273730607,0.00060236,43363.0,43362.0,0.78826725]
[1642273731253,0.00060236,43363.0,43362.0,1.28826725]
[1642273733052,0.00060236,43363.0,43362.0,0.78826725]
[1642273733756,0.00060236,43363.0,43362.0,0.1]
[1642273734152,0.00060236,43363.0,43361.0,0.057635]
[1642273734604,0.00060236,43363.0,43361.0,0.072935]
[1642273734800,0.00060236,43363.0,43362.0,0.79640655]
[1642273735002,0.00060236,43363.0,43362.0,0.7]
[1642273735200,0.00060236,43363.0,43362.0,1.488377]
[1642273736704,0.00060236,43363.0,43362.0,0.788377]
[1642273737303,0.00012601,43363.0,43362.0,0.788377]
[1642273737702,0.00012601,43363.0,43362.0,0.1]
[1642273738102,0.00012601,43363.0,43361.0,0.701312]
[1642273738351,0.00012601,43363.0,43361.0,0.688377]
[1642273739351,0.00012601,43363.0,43362.0,0.59009596]
[1642273739551,0.00012601,43363.0,43362.0,0.64529596]
[1642273739950,0.00012601,43363.0,43362.0,0.1]
[1642273740554,0.00124226,43370.0,43363.0,0.4]
[1642273740750,0.0007253,43370.0,43363.0,0.4]
[1642273740951,8.595e-05,43368.0,43363.0,0.5]
[1642273741351,1.7661,43374.0,43365.0,0.115255]
[1642273741352,6.876e-05,43367.0,43365.0,0.115255]
[1642273741652,0.00012033,43370.0,43365.0,0.208895]
[1642273742005,0.37640814,43369.0,43365.0,0.208895]
[1642273742206,0.37640814,43369.0,43365.0,0.30535655]
[1642273742412,0.00013752,43371.0,43366.0,0.36703436]
[1642273742705,0.00012033,43370.0,43366.0,0.46703436]
[1642273743106,0.00010314,43369.0,43366.0,0.46703436]
[1642273743305,0.00010314,43369.0,43367.0,0.057625]
[1642273743506,0.0001719,43373.0,43367.0,0.057625]
[1642273743806,0.00015471,43372.0,43367.0,0.057625]
[1642273744206,0.00013752,43371.0,43367.0,0.115248]
[1642273744606,0.00012033,43370.0,43367.0,0.070648]
[1642273744906,0.00093371,43371.0,43367.0,0.070648]
[1642273744907,0.00010314,43369.0,43367.0,0.070648]
[1642273745305,0.00012033,43370.0,43367.0,0.070648]
[1642273745755,0.00010314,43369.0,43367.0,0.130648]
[1642273745957,0.00010314,43369.0,43367.0,0.117625]
[1642273746155,0.00093371,43371.0,43367.0,0.117625]
[1642273746356,0.376305,43370.0,43367.0,0.117625]
[1642273746554,0.37642533,43370.0,43367.0,0.117625]
[1642273746755,0.00010314,43369.0,43367.0,0.117625]
[1642273747761,0.00010314,43369.0,43367.0,0.06]
[1642273749597,0.00010314,43369.0,43368.0,0.057627]
[1642273749798,0.00010314,43369.0,43368.0,0.012227]
[1642273750102,0.00010314,43369.0,43368.0,0.412227]
[1642273750598,0.00010314,43369.0,43368.0,0.112227]
[1642273751098,0.00010314,43369.0,43368.0,0.512227]
[1642273751299,0.00010314,43369.0,43368.0,0.511227]
[1642273751498,0.00010314,43369.0,43368.0,0.111227]
[1642273751898,0.00010314,43369.0,43368.0,0.911227]
[1642273752099,0.00010314,43369.0,43368.0,1.011227]
[1642273753548,0.00010314,43369.0,43368.0,1.05860764]
[1642273753749,3.1e-06,43369.0,43368.0,1.05860764]
[1642273753948,3.1e-06,43369.0,43368.0,0.15860764]
[1642273754149,3.1e-06,43369.0,43368.0,0.05860764]
[1642273754750,3.1e-06,43369.0,43368.0,0.01390764]
[1642273755149,3.1e-06,43369.0,43368.0,0.60343429]
[1642273755350,3.1e-06,43369.0,43368.0,0.95663722]
[1642273755553,3.1e-06,43369.0,43368.0,0.80424337]
[1642273755750,3.1e-06,43369.0,43368.0,0.21471672]
[1642273756151,3.1e-06,43369.0,43368.0,0.31327969]
[1642273756550,3.1e-06,43369.0,43368.0,1.3817185]
[1642273756752,3.1e-06,43369.0,43368.0,1.34125853]
[1642273759200,3.1e-06,43369.0,43368.0,1.38315553]
[1642273759801,3.1e-06,43369.0,43368.0,1.33964635]
[1642273760401,3.1e-06,43369.0,43368.0,1.38574635]
[1642273761047,3.1e-06,43369.0,43368.0,0.69736935]
[1642273761247,0.001496,43375.0,43368.0,0.75642935]
[1642273761447,0.001496,43375.0,43374.0,0.00128881]
[1642273761648,0.001496,43375.0,43374.0,1.99686881]
[1642273761846,0.00373422,43378.0,43377.0,0.00121725]
[1642273762046,0.00373422,43378.0,43377.0,1.55417125]
[1642273762246,0.0015297,43382.0,43378.0,1.7]
[1642273762447,0.002,43383.0,43382.0,0.0012875]
[1642273762647,0.002,43383.0,43382.0,0.0892485]
[1642273762947,0.002,43383.0,43382.0,0.6392485]
[1642273763147,0.002,43383.0,43382.0,0.7392485]
[1642273763948,0.002,43383.0,43382.0,1.6392485]
[1642273764348,0.00154958,43385.0,43383.0,0.55]
[1642273764623,0.00154958,43385.0,43384.0,1.28842653]
[1642273764819,0.00154958,43385.0,43384.0,1.24382653]
[1642273765019,0.00154958,43385.0,43384.0,1.34382653]
[1642273765020,0.00127504,43385.0,43384.0,1.34382653]
[1642273766025,0.00127504,43385.0,43384.0,0.893357]
[1642273766823,0.00189788,43387.0,43386.0,0.607596]
[1642273767022,0.00189788,43387.0,43386.0,0.707596]
[1642273767223,0.00096431,43387.0,43386.0,0.707596]
[1642273767424,0.00096431,43387.0,43386.0,0.98260682]
[1642273767623,0.00089786,43392.0,43386.0,1.04019882]
[1642273767823,0.00089786,43392.0,43386.0,0.49019882]
[1642273768025,6.876e-05,43389.0,43386.0,0.49019882]
[1642273769354,6.876e-05,43389.0,43386.0,0.43260682]
[1642273769755,6.876e-05,43389.0,43386.0,0.112796]
[1642273770157,6.876e-05,43389.0,43386.0,0.012796]
[1642273770658,6.876e-05,43389.0,43386.0,0.070387]
[1642273771857,6.876e-05,43389.0,43386.0,0.012796]
[1642273773004,6.876e-05,43389.0,43386.0,0.070393]
[1642273773812,6.876e-05,43389.0,43386.0,0.012796]
[1642273774804,6.876e-05,43389.0,43385.0,0.083287]
[1642273775863,6.876e-05,43389.0,43386.0,0.057596]
[1642273779806,6.876e-05,43389.0,43386.0,0.012896]
[1642273784458,6.876e-05,43389.0,43385.0,0.083287]
[1642273784857,6.876e-05,43389.0,43385.0,0.038687]
[1642273788603,0.30076049,43391.0,43385.0,0.038687]
[1642273788804,0.376289,43390.0,43385.0,0.038687]
[1642273789606,0.00093352,43391.0,43385.0,0.038687]
[1642273789806,0.00093352,43391.0,43383.0,0.30624937]
[1642273790107,0.00089786,43392.0,43384.0,8.595e-05]
[1642273790308,0.0009335,43391.0,43384.0,8.595e-05]
[1642273790507,0.0009335,43391.0,43384.0,0.09478114]
[1642273790957,0.0009335,43391.0,43385.0,0.11525976]
[1642273791460,0.00093352,43391.0,43385.0,0.17285676]
[1642273792455,0.00089786,43392.0,43385.0,0.17285676]
[1642273792657,0.00093352,43391.0,43387.0,0.115191]
[1642273793657,0.00089786,43392.0,43387.0,0.115191]
[1642273793855,0.00093353,43391.0,43387.0,0.115191]
[1642273794935,0.00089786,43392.0,43387.0,0.070591]
[1642273795135,0.00093353,43391.0,43387.0,0.070591]
[1642273795835,0.00093353,43391.0,43388.0,0.43730073]
[1642273796036,0.00089786,43392.0,43388.0,0.59489273]
[1642273796236,0.00183138,43392.0,43388.0,0.59489273]
[1642273797242,0.00089786,43392.0,43388.0,0.59489273]
[1642273797438,0.00183138,43392.0,43389.0,0.115191]
[1642273798463,0.00089786,43392.0,43389.0,0.115191]
[1642273799869,0.00089786,43392.0,43389.0,0.070591]
[1642273800265,0.00089786,43392.0,43389.0,0.34050504]
[1642273800668,0.00089786,43392.0,43389.0,0.44050504]
[1642273801268,0.76843325,43402.0,43389.0,0.44050504]
[1642273801269,2.77946916,43400.0,43389.0,0.44050504]
[1642273801472,0.376289,43397.0,43389.0,0.44050504]
[1642273801672,6.876e-05,43393.0,43389.0,0.44050504]
[1642273802111,6.876e-05,43393.0,43390.0,0.14124756]
[1642273802303,6.876e-05,43393.0,43392.0,0.00125821]
[1642273802304,0.00142576,43393.0,43392.0,0.00125821]
[1642273802509,0.00142576,43393.0,43392.0,1.24735821]
[1642273802703,0.0001357,43393.0,43392.0,1.24735821]
[1642273802902,0.001357,43393.0,43392.0,1.67541214]
[1642273803504,0.001357,43393.0,43392.0,1.57541214]
[1642273803705,0.5807,43398.0,43393.0,0.55]
[1642273803905,0.0014071,43398.0,43394.0,0.0461]
[1642273804104,6.876e-05,43397.0,43394.0,0.161263]
[1642273804307,6.876e-05,43397.0,43395.0,0.53206986]
[1642273804506,6.876e-05,43397.0,43396.0,0.74785113]
[1642273804905,6.876e-05,43397.0,43396.0,0.7461]
[1642273805307,6.876e-05,43397.0,43396.0,1.33336577]
[1642273805953,6.876e-05,43397.0,43396.0,0.7461]
[1642273806150,0.0014071,43398.0,43397.0,0.85]
[1642273806350,0.0014071,43398.0,43397.0,0.8961]
[1642273806551,0.0014071,43398.0,43397.0,0.1461]
[1642273806752,0.00193346,43399.0,43397.0,0.8461]
[1642273806951,0.001,43399.0,43397.0,1.56194438]
[1642273807553,0.001,43399.0,43397.0,0.8461]
[1642273807756,0.001,43399.0,43397.0,0.83063681]
[1642273808352,0.001,43399.0,43398.0,1.37772135]
[1642273808553,0.001,43399.0,43398.0,1.47772135]
[1642273809155,0.001,43399.0,43398.0,0.78453681]
[1642273809356,0.001,43399.0,43398.0,1.18678684]
[1642273809601,0.00402474,43407.0,43398.0,0.68678684]
[1642273809801,0.00402474,43407.0,43399.0,0.115162]
[1642273810002,0.00012033,43404.0,43399.0,0.057581]
[1642273810202,0.30488205,43404.0,43399.0,0.057581]
[1642273810405,0.00010314,43403.0,43399.0,0.057581]
[1642273810802,8.595e-05,43402.0,43399.0,0.64397571]
[1642273811202,6.876e-05,43401.0,43399.0,0.74527131]
[1642273811405,6.876e-05,43401.0,43399.0,0.1588766]
[1642273811602,0.00015471,43406.0,43399.0,0.1588766]
[1642273812001,0.00013752,43405.0,43399.0,0.1588766]
[1642273812203,0.00013752,43405.0,43399.0,0.0588766]
[1642273812503,0.00015471,43406.0,43403.0,0.057577]
[1642273812701,0.376289,43405.0,43403.0,0.057577]
[1642273812902,0.37642652,43405.0,43403.0,0.057577]
[1642273813660,0.08655103,43404.0,43403.0,0.057577]
[1642273813859,0.46367854,43404.0,43403.0,0.057577]
[1642273814062,0.46728747,43404.0,43398.0,0.80155571]
[1642273814263,0.376289,43404.0,43398.0,0.80155571]
[1642273814460,0.00010314,43403.0,43398.0,0.80155571]
[1642273814662,0.25813592,43401.0,43398.0,0.215161]
[1642273814863,0.25813592,43401.0,43398.0,0.1]
[1642273815061,0.25813592,43401.0,43396.0,0.68639471]
[1642273815763,0.25813592,43401.0,43396.0,0.58639471]
[1642273816564,0.25813592,43401.0,43394.0,0.58639471]
[1642273816762,0.25813592,43401.0,43395.0,0.00068638]
[1642273817610,8.595e-05,43402.0,43392.0,1.02758004]
[1642273817811,8.595e-05,43402.0,43392.0,0.96998304]
[1642273818011,6.876e-05,43401.0,43395.0,0.00068638]
[1642273818212,6.876e-05,43401.0,43395.0,0.05827938]
[1642273818417,8.595e-05,43402.0,43395.0,0.05827938]
[1642273818813,6.876e-05,43401.0,43395.0,0.057593]
[1642273819012,6.876e-05,43401.0,43395.0,0.05827938]
[1642273819212,8.595e-05,43402.0,43395.0,0.05827938]
[1642273819615,6.876e-05,43401.0,43395.0,0.05827938]
[1642273819812,6.876e-05,43401.0,43395.0,0.64467409]
[1642273820012,8.595e-05,43402.0,43395.0,0.59928771]
[1642273820213,8.595e-05,43402.0,43395.0,0.69997409]
[1642273820412,6.876e-05,43401.0,43395.0,0.69997409]
[1642273820855,8.595e-05,43402.0,43395.0,0.11357938]
[1642273821252,6.876e-05,43401.0,43395.0,0.012893]
[1642273821551,0.00093339,43403.0,43395.0,0.07116338]
[1642273821751,0.00093339,43403.0,43397.0,0.115169]
[1642273821952,0.00093339,43403.0,43395.0,0.05827038]
[1642273821953,8.595e-05,43402.0,43395.0,0.00068638]
[1642273822153,8.595e-05,43402.0,43395.0,0.09614578]
[1642273822352,6.876e-05,43401.0,43397.0,0.06]
[1642273822754,0.24841366,43402.0,43397.0,0.06]
[1642273823154,6.876e-05,43401.0,43397.0,0.06]
[1642273824916,6.876e-05,43401.0,43397.0,0.0152]
[1642273826516,0.2804496,43399.0,43397.0,0.0152]
[1642273828355,0.2804496,43399.0,43397.0,0.0142]
[1642273828556,0.2804496,43399.0,43395.0,0.68639471]
[1642273828759,0.2804496,43399.0,43395.0,0.7445602]
[1642273829157,6.876e-05,43401.0,43395.0,0.7445602]
[1642273829560,6.876e-05,43401.0,43395.0,0.6869682]
[1642273829857,6.876e-05,43401.0,43396.0,0.58639471]
[1642273830056,6.876e-05,43401.0,43396.0,0.64169471]
[1642273830858,6.876e-05,43401.0,43396.0,0.1]
[1642273831266,6.876e-05,43401.0,43396.0,0.09544786]
[1642273831459,6.876e-05,43401.0,43397.0,0.115167]
[1642273832304,6.876e-05,43401.0,43397.0,0.79970381]
[1642273832804,6.876e-05,43401.0,43397.0,0.215167]
[1642273833004,6.876e-05,43401.0,43397.0,0.1]
[1642273833809,6.876e-05,43401.0,43396.0,0.89970381]
[1642273835009,6.876e-05,43401.0,43396.0,0.85490381]